{"text_format":"3","workbook":"xlsx","n_sheets":1,"sheets":["Sheet1"],"not_rendered":{"defined_names":3},"read":"whole","date_system":"1900"}

{"sheet":"Sheet1","index":0,"n_rows":77,"n_cols":7,"rows_kept":77,"merged":[[1,0,1,6],[4,0,4,6],[8,0,8,6],[11,0,11,6],[68,0,68,6],[76,0,76,4]]}
["附件："]
["2025年度深圳市生态环境专项资金第二批资助项目计划表"]
[{"$nulls":6},"单位：万元"]
["序号","项目名称","申请单位","所属区","项目内容","项目绩效","资助金额"]
["污染处理设施更新改造项目（3个）"]
[{"$f":"ROW()-5","v":1},"深圳市和美科技有限公司污染处理设施更新改造项目","深圳市和美科技有限公司","龙岗","1.化学镍废水改为单独收集经预处理后进入含镍处理调节池（电镍废水），工艺为“调节芬顿氧化-混凝絮凝-沉淀”； 2.含氰废水预处理单元改造，由“二级漂水破氰”改造为“一级漂水破氰-二级漂水破氰”；3.综合废水处理工艺由“铁碳芬顿池-气浮-混凝-沉淀-生化反应-MBR膜”改造为“混凝-沉淀-生化反应（厌氧池-缺氧池-好氧池）-二沉池”，并增加污泥回流； 4.含氰池、含镍池池体防腐。","根据申报材料提供的更新改造前、后的第三方检测报告，改造前、后各废水排放口污染物均能达到相应污染物排放标准要求。",338.162788]
[{"$f":"ROW()-5","v":2},"华强眼镜（深圳）有限公司废水处理设施及废气处理设施更新改造项目","华强眼镜（深圳）有限公司","龙岗","更换一体化电芬顿设备、污水一体化设备和配套水泵、配电箱、罗茨风机、MBR膜、流量计等。","根据项目绩效自评报告，项目实施改造后，废水处理设施出水水质更为稳定，实现年减排 COD 0.003吨，年减排氨氮0.0018吨。",16.902655]
[{"$f":"ROW()-5","v":3},"深圳市正基电子有限公司废水站升级改造、危废仓库废气治理项目","深圳市正基电子有限公司","龙岗","增加的设备主要包括1套含氰处理一体化设备、5台机械搅拌机、1套搅拌机机架、1套管道管件、1套管道支架、1批生物填料系统、8套生物填料支架、1批微孔曝气器、1批生物菌种、1套生化池布气系统、3套电气控制器、2套现场控制箱、1套工控电脑、1套 PLC程序、1套仪表箱等。","根据项目绩效自评报告，项目改造后，COD和氨氮排放浓度较改造前有所降低，可实现 COD年减排0.009吨，氨氮年减排0.007吨，污泥年减排28.14吨。",30.819844]
["污染源自动监控设备更新改造项目（2个）"]
[4,"废水水质在线监测系统更新改造项目","深圳市和美科技有限公司","龙岗","更新氨氮、总磷、总镍、pH在线分析监测系统，流量计及配套设施。","该项目改造前后废水在线监测设备可以正常运行，改造后基本满足《水污染源在线监测系统（COD、NH3-N等）验收技术规范》（HJ354-2019）等文件要求，可达到项目预期目标。",6.238938]
[5,"深圳市富翔科技有限公司污染源自动监测设备更新改造项目","深圳市富翔科技有限公司","宝安","1.更新pH仪表及工业温湿度检测仪等、新增门禁视频监控系统；2.软硬件升级新国标、新国标比对验收（氨氮、总磷）；3.COD水质在线分析仪更新及调试验收。","该项目改造前后废水在线监测设备可以正常运行，改造后基本满足《水污染源在线监测系统（COD、NH3-N等）验收技术规范》（HJ354-2019）等文件要求，可达到项目预期目标。",{"v":4.74328,"d":"4.743280"}]
["环境污染责任保险保费补贴（56个）"]
[{"$f":"ROW()-7","v":6},"2022年-2023年环境污染强制责任保险保费补贴","联能科技（深圳）有限公司","宝安","环境污染责任保险保费补贴","环境污染责任保险保费补贴",0.867906]
[{"$f":"ROW()-7","v":7},"深圳市景旺电子股份有限公司环境污染责任保险保费补贴","深圳市景旺电子股份有限公司","宝安","环境污染责任保险保费补贴","环境污染责任保险保费补贴",1.176028]
[8,"深圳市仁创艺电子有限公司环境污染责任保险保费补贴","深圳市仁创艺电子有限公司","宝安","环境污染责任保险保费补贴","环境污染责任保险保费补贴",0.486876]
[9,"环境污染强制责任保险保费补贴","深圳年丰鸿兴科技有限公司","龙岗","环境污染责任保险保费补贴","环境污染责任保险保费补贴",0.400085]
[10,"盐田国际集装箱码头有限公司环境污染责任保险保费补贴","盐田国际集装箱码头有限公司","盐田","环境污染责任保险保费补贴","环境污染责任保险保费补贴",0.762066]
[11,"环境污染责任保险保费补贴","深圳市华星光电半导体显示技术有限公司","光明","环境污染责任保险保费补贴","环境污染责任保险保费补贴",1.707458]
[12,"深圳金名再生资源有限公司环境污染责任保险保费补贴","深圳金名再生资源有限公司","龙华","环境污染责任保险保费补贴","环境污染责任保险保费补贴",0.400057]
[13,"深圳市宏永利电镀制品有限公司环境污染责任保险保费补贴","深圳市宏永利电镀制品有限公司","宝安","环境污染责任保险保费补贴","环境污染责任保险保费补贴",{"v":0.42337,"d":"0.423370"}]
[14,"深圳市金源康实业有限公司环境污染责任保险保费补贴","深圳市金源康实业有限公司","坪山","环境污染责任保险保费补贴","环境污染责任保险保费补贴",{"v":0.57155,"d":"0.571550"}]
[15,"深圳市中深光电股份有限公司环境污染责任保险保费补贴","深圳市中深光电股份有限公司","宝安","环境污染责任保险保费补贴","环境污染责任保险保费补贴",0.211685]
[16,"深圳市环保科技集团股份有限公司环境污染责任保险保费补贴","深圳市环保科技集团股份有限公司","宝安","环境污染责任保险保费补贴","环境污染责任保险保费补贴",2.201525]
[{"$f":"ROW()-7","v":17},"深圳市汇沣环保有限公司环境污染责任保险保费补贴","深圳市汇沣环保有限公司","龙岗","环境污染责任保险保费补贴","环境污染责任保险保费补贴",1.333616]
[18,"深圳创达五金饰品有限公司环境污染责任保险保费补贴","深圳创达五金饰品有限公司","宝安","环境污染责任保险保费补贴","环境污染责任保险保费补贴",0.517452]
[19,"深圳市北泰显示技术有限公司环境污染责任保险保费补贴","深圳市北泰显示技术有限公司","龙华","环境污染责任保险保费补贴","环境污染责任保险保费补贴",0.190509]
[20,"深圳市合威实业有限公司环境污染责任保险保费补贴","深圳市合威实业有限公司","坪山","环境污染责任保险保费补贴","环境污染责任保险保费补贴",0.635055]
[21,"环境污染责任保险保费补贴-龙景织造（深圳）有限公司","龙景织造（深圳）有限公司","宝安","环境污染责任保险保费补贴","环境污染责任保险保费补贴",0.296358]
[22,"深圳市富翔科技有限公司环境污染责任保险保费补贴","深圳市富翔科技有限公司","宝安","环境污染责任保险保费补贴","环境污染责任保险保费补贴",0.486868]
[23,"深圳市瑞云峰实业有限公司环境污染责任保险保费补贴","深圳市瑞云峰实业有限公司","宝安","环境污染责任保险保费补贴","环境污染责任保险保费补贴",0.635055]
[24,"新智德精密零件（深圳）有限公司2024年环境污染责任保险保费补贴","新智德精密零件（深圳）有限公司","龙华","环境污染责任保险保费补贴","环境污染责任保险保费补贴",0.114302]
[25,"深圳市龙岗区坪山协力胶盒厂环境污染责任保险保费补贴","深圳市龙岗区坪山协力胶盒厂","坪山","环境污染责任保险保费补贴","环境污染责任保险保费补贴",0.171465]
[26,"松安印刷（深圳）有限公司环境污染责任保险保费补贴","松安印刷（深圳）有限公司","宝安","环境污染责任保险保费补贴","环境污染责任保险保费补贴",{"v":0.127,"d":"0.127000"}]
[{"$f":"ROW()-7","v":27},"百强电子（深圳）有限公司环境污染责任保险保费补贴","百强电子（深圳）有限公司","宝安","环境污染责任保险保费补贴","环境污染责任保险保费补贴",0.444539]
[28,"深圳市深水横岗水务有限公司环境污染责任保险保费补贴","深圳市深水横岗水务有限公司","龙岗","环境污染责任保险保费补贴","环境污染责任保险保费补贴",0.381038]
[29,"环境污染责任保险保费补贴-深圳市宝裕华实业有限公司","深圳市宝裕华实业有限公司","坪山","环境污染责任保险保费补贴","环境污染责任保险保费补贴",0.540973]
[30,"顶群科技（深圳）有限公司环境污染责任保险保费补贴","顶群科技（深圳）有限公司","宝安","环境污染责任保险保费补贴","环境污染责任保险保费补贴",0.784803]
[31,"汇钻实业（深圳）有限公司环境污染责任保险保费补贴","汇钻实业（深圳）有限公司","宝安","环境污染责任保险保费补贴","环境污染责任保险保费补贴",{"v":0.5779,"d":"0.577900"}]
[32,"深圳奥萨制药有限公司环境污染责任保险保费补贴","深圳奥萨制药有限公司","南山","环境污染责任保险保费补贴","环境污染责任保险保费补贴",0.211685]
[33,"深圳市和美科技有限公司环境污染责任保险保费补贴","深圳市和美科技有限公司","龙岗","环境污染责任保险保费补贴","环境污染责任保险保费补贴",0.919868]
[34,"深圳市翔宇电路有限公司环境污染责任保险保费补贴","深圳市翔宇电路有限公司","宝安","环境污染责任保险保费补贴","环境污染责任保险保费补贴",0.522679]
[35,"通用沙井污水处理（深圳）有限公司环境污染责任保险保费补贴","通用沙井污水处理（深圳）有限公司","宝安","环境污染责任保险保费补贴","环境污染责任保险保费补贴",0.381019]
[36,"环境污染责任保险保费补贴-达威珠宝钟表（深圳）有限公司","达威珠宝钟表（深圳）有限公司","龙岗","环境污染责任保险保费补贴","环境污染责任保险保费补贴",0.317528]
[{"$f":"ROW()-7","v":37},"深圳市卓力达电子有限公司环境污染责任保险保费补贴","深圳市卓力达电子有限公司","宝安","环境污染责任保险保费补贴","环境污染责任保险保费补贴",0.422312]
[38,"深圳中集天达空港设备有限公司环境污染责任保险保费补贴","深圳中集天达空港设备有限公司","宝安","环境污染责任保险保费补贴","环境污染责任保险保费补贴",0.254022]
[39,"深圳市鹏芯微集成电路制造有限公司环境污染责任保险保费补贴","深圳市鹏芯微集成电路制造有限公司","龙岗","环境污染责任保险保费补贴","环境污染责任保险保费补贴",2.482726]
[40,"深圳市中村科技实业有限公司环境污染责任保险保费补贴","深圳市中村科技实业有限公司","宝安","环境污染责任保险保费补贴","环境污染责任保险保费补贴",0.574947]
[41,"深圳市森宝表面处理有限公司环境污染责任保险保费补贴","深圳市森宝表面处理有限公司","龙岗","环境污染责任保险保费补贴","环境污染责任保险保费补贴",0.588014]
[42,"深圳市大正科技有限公司环境污染责任保险保费补贴","深圳市大正科技有限公司","宝安","环境污染责任保险保费补贴","环境污染责任保险保费补贴",{"v":0.84674,"d":"0.846740"}]
[43,"金宝通电子（深圳）有限公司环境污染责任保险保费补贴","金宝通电子（深圳）有限公司","龙岗","环境污染责任保险保费补贴","环境污染责任保险保费补贴",0.171465]
[44,"金宝通智能制造（深圳）有限公司环境污染责任保险保费补贴","金宝通智能制造（深圳）有限公司","龙岗","环境污染责任保险保费补贴","环境污染责任保险保费补贴",0.171465]
[45,"深圳华大生命科学研究院环境污染责任保险保费补贴","深圳华大生命科学研究院","盐田","环境污染责任保险保费补贴","环境污染责任保险保费补贴",0.254717]
[46,"环境污染责任保险保费补贴-深圳市杨江五金电子有限公司","深圳市杨江五金电子有限公司","坪山","环境污染责任保险保费补贴","环境污染责任保险保费补贴",0.735849]
[{"$f":"ROW()-7","v":47},"环境污染责任保险保费补贴","深圳市得星昌电子有限公司","龙岗","环境污染责任保险保费补贴","环境污染责任保险保费补贴",{"v":0.57155,"d":"0.571550"}]
[48,"高士线业（深圳）有限公司环境污染责任保险保费补贴","高士线业（深圳）有限公司","宝安","环境污染责任保险保费补贴","环境污染责任保险保费补贴",0.635055]
[49,"环境污染强制责任保险保费补贴","深圳市联升达五金塑胶制品有限公司","龙岗","环境污染责任保险保费补贴","环境污染责任保险保费补贴",0.704911]
[50,"环境污染责任保险保费补贴-港华鸿记科技（深圳）有限公司","港华鸿记科技（深圳）有限公司","龙岗","环境污染责任保险保费补贴","环境污染责任保险保费补贴",0.635055]
[51,"深圳市鹏金投资有限公司环境污染责任保险保费补贴","深圳市鹏金投资有限公司","宝安","环境污染责任保险保费补贴","环境污染责任保险保费补贴",{"v":0.94083,"d":"0.940830"}]
[52,"深圳市福源晖集成电子有限公司环境污染责任保险保费补贴","深圳市福源晖集成电子有限公司","宝安","环境污染责任保险保费补贴","环境污染责任保险保费补贴",0.486868]
[53,"深圳市同华实业有限公司环境污染责任保险保费补贴","深圳市同华实业有限公司","龙岗","环境污染责任保险保费补贴","环境污染责任保险保费补贴",0.470411]
[54,"富士电机（深圳）有限公司环境污染责任保险保费补贴","富士电机（深圳）有限公司","宝安","环境污染责任保险保费补贴","环境污染责任保险保费补贴",0.611535]
[55,"环境污染责任保险保费补贴-艾杰旭新型电子显示玻璃（深圳）有限公司","艾杰旭新型电子显示玻璃（深圳）有限公司","光明","环境污染责任保险保费补贴","环境污染责任保险保费补贴",0.571528]
[56,"同兴塑胶五金（深圳）有限公司环境污染责任保险保费补贴","同兴塑胶五金（深圳）有限公司","龙岗","环境污染责任保险保费补贴","环境污染责任保险保费补贴",0.550358]
[57,"2024年环境污染责任保险保费补贴","深圳市南方水务有限公司","龙岗","环境污染责任保险保费补贴","环境污染责任保险保费补贴",1.676546]
[58,"建辉塑胶电子实业（深圳）有限公司环境污染责任保险保费补贴","建辉塑胶电子实业（深圳）有限公司","龙华","环境污染责任保险保费补贴","环境污染责任保险保费补贴",0.275191]
[59,"2024年环境污染责任保险保费补贴","贝特瑞新材料集团股份有限公司","光明","环境污染责任保险保费补贴","环境污染责任保险保费补贴",{"v":0.22862,"d":"0.228620"}]
[60,"深圳绿循能源科技有限公司环境污染责任保险保费补贴","深圳绿循能源科技有限公司","光明","环境污染责任保险保费补贴","环境污染责任保险保费补贴",0.361982]
[61,"深圳市净诺环境治理有限公司环境污染责任保险保费补贴","深圳市净诺环境治理有限公司","光明","环境污染责任保险保费补贴","环境污染责任保险保费补贴",{"v":0.34293,"d":"0.342930"}]
["绿色创建补贴（7个）"]
[{"$f":"ROW()-8","v":62},"2024年深圳市自然学校（虹桥公园自然教育中心）","润加物业服务（深圳）有限公司","光明","绿色创建补贴（一次性补贴+活动补贴）","2024年深圳市自然学校",17.6]
[{"$f":"ROW()-8","v":63},"2022年广东省环境教育基地（深圳贝壳红实业有限公司)","深圳贝壳红实业有限公司","宝安","绿色创建补贴（活动补贴）","2022年广东省环境教育基地",10]
[64,"2024年深圳市环境教育基地（深圳横岭水质净化厂）","深圳北控创新投资有限公司","龙岗","绿色创建补贴（一次性补贴）","2024年深圳市环境教育基地",15]
[65,"2020年深圳市自然学校（青青世界）","深圳青青观光农场有限公司","南山","绿色创建补贴（活动补贴）","2020年深圳市自然学校",0.6]
[66,"2020年深圳市自然学校（梧桐山风景区）","深圳市梧桐山风景区管理处","罗湖","绿色创建补贴（活动补贴）","2020年深圳市自然学校",7.4]
[67,"2023年深圳市环境科普教育基地（龙岗区园山街道生活垃圾分类科普教育馆）","深圳市绿果果低碳环保志愿服务协会","龙岗","绿色创建补贴（活动补贴）","2023年深圳市环境科普教育基地",2]
[68,"2020年国家自然学校能力建设项目自然学校试点（深圳市大鹏新区坝光自然学校）","深圳市大鹏新区珊瑚保育志愿联合会","大鹏","绿色创建补贴（活动补贴）","2020年国家自然学校能力建设项目自然学校试点",10]
["合计",{"$nulls":5},{"$f":"G76+G75+G74+G73+G72+G71+G70+G68+G67+G66+G65+G64+G63+G61+G62+G60+G59+G58+G57+G56+G55+G54+G53+G52+G51+G50+G49+G47+G48+G46+G45+G44+G43+G42+G41+G40+G39+G38+G37+G36+G35+G34+G33+G32+G31+G30+G29+G28+G27+G26+G25+G24+G23+G22+G21+G20+G19+G18+G17+G16+G15+G14+G13+G11+G10+G8+G7+G6","v":{"v":493.83145,"d":"493.831450"}}]